[Event "34th GER-ch Seniors-50 2022"]
[Site "Magdeburg"]
[Date "2022.08.16"]
[Round "5.4"]
[White "Pirrot, Dieter"]
[Black "Willsch, Matthias"]
[Result "1-0"]
[ECO "C02"]
[WhiteElo "2328"]
[BlackElo "2104"]
[Annotator "TA"]
[PlyCount "73"]
[EventDate "2022.08.12"]
[EventType "swiss"]
[EventCountry "GER"]
[SourceTitle "playchess.com"]
[Source "ChessBase"]
[SourceQuality "1"]
[TimeControl "40/5400+30:1800+30"]

{[%evp 11,73,22,37,10,11,-46,-22,-41,-34,-59,-20,-30,28,22,6,-1,-18,-1,19,8,72,3,0,0,0,-22,0,-32,0,-27,39,50,218,212,203,60,206,89,143,37,276,240,160,131,381,206,446,441,422,434,388,422,520,125,614,589,593,542,699,683,854,840,843,793]} 1. e4 {[%emt 0:00:03]} e6 {[%emt 0:00:05]} 2. d4 {[%emt 0:00:09]} d5 {[%emt 0:00:06]} 3. e5 {[%emt 0:00:07]} c5 {[%emt 0:00:06]} 4. c3 {[%emt 0:00:06]} Nc6 {[%emt 0:00:06]} 5. Nf3 {[%emt 0:00:08]} Nh6 {[%emt 0:00:07]} 6. Bd3 {[%emt 0:00:56]} Nf5 {[%emt 0:00:21][%cal Rc5d4]} 7. h4 {[%emt 0:05:00] C02: French: Advance Variation.} cxd4 {[%emt 0:06:53]} 8. g4 {[%emt 0:08:24]} ({Better is} 8. Bxf5 $11 exf5 9. cxd4) 8... Nh6 $1 $15 {[%emt 0:04:26] [#]} 9. Rg1 $146 {[%emt 0:00:23] The position is equal.} ({Predecessor:} 9. g5 Nf5 10. O-O h6 11. Bxf5 exf5 12. Bf4 hxg5 13. hxg5 d3 14. Qxd3 Ne7 15. e6 Bxe6 {0-1 (37) Argote Heredia,V (2215)-Prasca Sosa,R (2355) Pereira 2022}) 9... dxc3 {[%emt 0:01:36]} 10. Nxc3 {[%emt 0:00:10]} Bb4 {[%emt 0:03:49]} 11. Bd2 {[%emt 0:05:00]} Bxc3 {[%emt 0:05:05]} (11... a6 $142) 12. Bxc3 $11 {[%emt 0:00:25]} Bd7 {[%emt 0:03:51]} 13. b4 {[%emt 0:06:57]} a6 {[%emt 0:09:41]} 14. a4 {[%emt 0:00:26]} d4 {[%emt 0:07:09]} 15. Bd2 {[%emt 0:03:00][%mdl 1024] White has compensation.} Qb8 {[%emt 0:09:29]} (15... b5 $11 {keeps the balance.}) 16. Qe2 {[%emt 0:01:20] White is more active.} (16. Kf1 $1 $16) 16... Ng8 $1 {[%emt 0:01:27]} 17. Rb1 {[%emt 0:02:08]} b5 {[%emt 0:06:33]} 18. a5 {[%emt 0:07:10]} Nge7 {[%emt 0:00:46]} 19. Be4 {[%emt 0:04:51]} Ra7 {[%emt 0:02:18]} 20. Bf4 {[%emt 0:06:22]} Ng6 {[%emt 0:00:30]} (20... Nd5 $11 21. Bxd5 exd5) 21. Bg3 $14 {[%emt 0:00:46]} h5 $2 {[%emt 0:02:34]} (21... Nge7 $14) 22. gxh5 $1 $18 {[%emt 0:05:57]} Nge7 {[%emt 0:00:06] [#]} 23. Ng5 {[%emt 0:03:46]} (23. Bf4 $1 $18) 23... Qc8 {[%emt 0:01:34] [#]} (23... Nxe5 $2 24. Bg6 N7xg6 25. hxg6 $18) (23... Nd8 $1 $14) 24. Bd3 {[%emt 0:04:12]} (24. Bf4 $1 $18 {has better winning chances.}) 24... Nf5 {[%emt 0:05:05]} (24... Nd5 $142) 25. Ne4 {[%emt 0:01:27]} (25. Rc1 $16) 25... Nce7 $2 {[%emt 0:02:06]} (25... Qd8 $1 $14) 26. Bf4 {[%emt 0:06:29][%cal Og1g7]} Nd5 {[%emt 0:05:23]} 27. Bd2 {[%emt 0:01:29]} Kf8 $2 {[%emt 0:02:50]} (27... Qd8 $16) 28. h6 {[%emt 0:05:08]} (28. Qg4 $142 {Black must now prevent Nd6.} Ke7 29. Nd6 Nxd6 30. exd6+ (30. Qxg7 Rxh5 31. exd6+ Kxd6 $16) 30... Kxd6 31. Qxd4) 28... Nxh6 $2 {[%emt 0:03:29]} (28... Rxh6 29. Bxh6 Nxh6) 29. Qh5 {[%emt 0:01:41] Threatens to win with Nd6.} Be8 {[%emt 0:02:13]} 30. Nd6 {[%emt 0:07:08]} ({Weaker is} 30. Qg5 g6 $11) 30... Qd8 {[%emt 0:02:46]} 31. Rc1 {[%emt 0:06:27] Hoping for Rc8. The board is on fire.} Nc3 {[%emt 0:01:54]} 32. Bg5 $2 {[%emt 0:03:02]} ({Not} 32. Bxc3 dxc3 33. Rxc3 Rc7 34. Rxc7 Qxc7 $18) (32. Bxh6 $18 {and White stays clearly on top.} Rxh6 33. Qg4) 32... Qd7 $2 {[%emt 0:03:14][%mdl 8192]} (32... f6 $16 33. Qf3 (33. Nxe8 fxg5 34. Nd6 Kg8 $16) 33... Ng8) 33. Bxh6 {[%emt 0:01:07][%mdl 64] Remove Defender. White is clearly winning.} Rxh6 {[%emt 0:00:33]} 34. Qg4 {[%emt 0:01:04][%csl LRd4,LRg7]} f5 {[%emt 0:05:20]} 35. Qxd4 {[%emt 0:00:25]} Ne4 {[%emt 0:02:46]} 36. Bxe4 {[%emt 0:00:29]} Rxh4 {[%emt 0:00:15] [#]} 37. Qc5 $1 {[%emt 0:01:38][%csl LRb5,LRf5] Weighted Error Value: White=0.52/Black=0.89} 1-0

[Event "34th GER-ch Seniors-50 2022"]
[Site "Magdeburg"]
[Date "2022.08.16"]
[Round "5.5"]
[White "De Roda Husman, Juan"]
[Black "Hesse, Juergen"]
[Result "1-0"]
[ECO "C90"]
[WhiteElo "2266"]
[BlackElo "1882"]
[Annotator "TA"]
[PlyCount "69"]
[EventDate "2022.08.12"]
[EventType "swiss"]
[EventCountry "GER"]
[SourceTitle "playchess.com"]
[Source "ChessBase"]
[SourceQuality "1"]
[TimeControl "40/5400+30:1800+30"]

{[%evp 23,69,8,18,0,0,10,26,20,18,18,10,0,14,10,33,-30,-28,-44,45,47,51,51,77,58,52,42,242,245,232,229,285,256,258,271,241,249,387,384,384,366,373,363,412,403,420,377,551,468]} 1. e4 {[%emt 0:00:07]} e5 {[%emt 0:00:14]} 2. Nf3 {[%emt 0:00:15]} Nc6 {[%emt 0:00:09]} 3. Bb5 {[%emt 0:00:24][%cal Bf1b5,Bb5a4,Ba4b3][%mdl 32]} a6 {[%emt 0:00:38]} 4. Ba4 {[%emt 0:00:13]} Nf6 {[%emt 0:00:35]} 5. O-O {[%emt 0:00:22]} b5 {[%emt 0:00:42]} 6. Bb3 {[%emt 0:00:11]} Be7 {[%emt 0:00:23]} 7. d3 {[%emt 0:06:24]} d6 {[%emt 0:02:23]} 8. c3 {[%emt 0:00:52]} O-O {[%emt 0:01:04]} 9. Re1 {[%emt 0:00:56]} Na5 {[%emt 0:02:55]} 10. Bc2 {[%emt 0:00:33]} c5 {[%emt 0:00:33]} 11. Nbd2 {[%emt 0:03:54]} Qc7 {[%emt 0:07:19]} 12. Nf1 {[%emt 0:05:06]} Nc6 {[%emt 0:03:40]} 13. a4 {[%emt 0:08:31] C90: Closed Ruy Lopez with 7...d6: Early deviations.} b4 {[%emt 0:03:12]} 14. Ne3 {[%emt 0:03:57]} a5 {[%emt 0:05:10] [#]} 15. Nd5 $146 {[%emt 0:17:39] White has an edge.} ({Predecessor:} 15. Bb3 Bd7 16. h3 Qc8 17. Kh2 Rb8 18. g4 g6 19. Rg1 bxc3 20. bxc3 Be6 21. Nd5 Bxd5 22. exd5 {½-½ (38) Leal Cortes,D (1900)-Castillo,H (2092) Bogota 2012}) 15... Nxd5 {[%emt 0:01:44]} 16. exd5 {[%emt 0:00:09]} Nb8 {[%emt 0:00:36]} 17. d4 {[%emt 0:00:15]} Nd7 {[%emt 0:06:16]} 18. dxe5 {[%emt 0:17:09]} dxe5 {[%emt 0:04:10]} 19. c4 {[%emt 0:08:39]} (19. Ng5 $14 Nf6 20. c4) 19... f5 $11 {[%emt 0:05:26]} 20. Ng5 {[%emt 0:03:24] [#] Strongly threatening Ne6.} Qd6 {[%emt 0:04:11]} ({Black should try} 20... Nf6 $15) 21. Ne6 {[%emt 0:03:13]} Rf7 {[%emt 0:01:10]} 22. b3 $36 {[%emt 0:02:28][%mdl 2048] White has some pressure.} e4 {[%emt 0:03:44]} 23. Bf4 {[%emt 0:02:39] White is more active.} Ne5 {[%emt 0:07:36]} 24. Nxc5 {[%emt 0:00:59][%cal Oh2h3]} Nf3+ $2 {[%emt 0:01:39] [#] This move loses the game for Black.} (24... g6 $14) 25. Qxf3 $3 $18 {[%emt 0:00:09][%mdl 512]} Qxc5 {[%emt 0:05:52]} 26. Qe3 {[%emt 0:01:07]} h6 {[%emt 0:01:49]} 27. Rad1 {[%emt 0:01:33]} Bd7 {[%emt 0:06:16]} 28. Qxc5 {[%emt 0:02:28]} Bxc5 {[%emt 0:00:14]} 29. Be3 {[%emt 0:00:06]} Rc8 {[%emt 0:01:17]} (29... Bd6 $142 30. f3 exf3 31. gxf3 Rc8) 30. Bxc5 {[%emt 0:00:24]} Rxc5 {[%emt 0:00:23]} 31. f3 {[%emt 0:00:04]} exf3 {[%emt 0:01:17]} 32. gxf3 {[%emt 0:00:06]} Rf6 {[%emt 0:04:32]} 33. Re5 {[%emt 0:01:54]} g6 {[%emt 0:02:10]} 34. Kf2 {[%emt 0:00:37]} Rd6 {[%emt 0:04:18]} (34... f4 {was called for.} 35. h4 Kg7) 35. Ke3 {[%emt 0:11:13] Weighted Error Value: White=0.09 (flawless) /Black=0.49} 1-0

[Event "34th GER-ch Seniors-50 2022"]
[Site "Magdeburg"]
[Date "2022.08.16"]
[Round "5.7"]
[White "Krause, Ullrich"]
[Black "Moritz, Hartmut"]
[Result "1-0"]
[ECO "E01"]
[WhiteElo "2190"]
[BlackElo "2057"]
[Annotator "TA"]
[PlyCount "63"]
[EventDate "2022.08.12"]
[EventType "swiss"]
[EventCountry "GER"]
[SourceTitle "playchess.com"]
[Source "ChessBase"]
[SourceQuality "1"]
[TimeControl "40/5400+30:1800+30"]

{[%evp 13,63,29,30,20,14,17,2,3,25,12,29,40,23,22,37,0,44,0,56,51,54,51,42,56,50,56,54,47,40,15,26,0,84,54,103,0,62,62,55,71,71,61,66,53,47,23,54,56,101,4,1225,912]} 1. Nf3 {[%emt 0:00:04]} d5 {[%emt 0:00:42]} 2. d4 {[%emt 0:00:06]} Nf6 {[%emt 0:00:15]} 3. c4 {[%emt 0:00:17]} c6 {[%emt 0:01:56]} 4. Qc2 {[%emt 0:03:01]} e6 {[%emt 0:04:37]} 5. g3 {[%emt 0:00:10]} Nbd7 {[%emt 0:01:08]} 6. Bg2 {[%emt 0:00:13]} Bd6 {[%emt 0:00:33]} 7. O-O {[%emt 0:00:16]} O-O {[%emt 0:00:18]} 8. Nfd2 {[%emt 0:01:28] E01: Catalan: Early deviations.} e5 {[%emt 0:01:09]} 9. cxd5 {[%emt 0:00:27]} Nxd5 {[%emt 0:01:00]} 10. Nc4 {[%emt 0:01:49] The position is equal.} Bc7 {[%emt 0:01:53]} 11. e4 {[%emt 0:12:15]} N5b6 {[%emt 0:00:45] [#]} (11... Nb4 $5 {[%cal Rb4c2]} 12. Qc3 b5 $14) 12. Nxe5 $146 {[%emt 0:06:30]} ({Predecessor:} 12. d5 cxd5 13. exd5 Nxc4 14. Qxc4 Nb6 15. Qb3 Bd6 16. Nc3 f5 17. Be3 f4 18. Bxb6 axb6 19. Ne4 Bg4 20. h3 Bxh3 {½-½ (20) Pantovic,D (2175)-Rajkovic,M (1971) Belgrade 2013}) 12... Nxe5 {[%emt 0:00:15]} 13. dxe5 {[%emt 0:00:12]} Bxe5 {[%emt 0:00:31]} 14. Nc3 {[%emt 0:05:11][%cal Bb1c3,Bc3e2,Be2d4,Bd4e6][%mdl 32]} f5 {[%emt 0:20:55]} 15. f4 {[%emt 0:14:01]} Bc7 {[%emt 0:07:41]} (15... Bd4+ $11 16. Kh1 fxe4) 16. b3 {[%emt 0:03:24]} Qf6 {[%emt 0:17:58]} 17. Bb2 {[%emt 0:11:19][%cal Oc3b5]} Qf7 {[%emt 0:02:23]} 18. Rae1 {[%emt 0:04:51]} Be6 {[%emt 0:02:49]} 19. Ne2 {[%emt 0:09:22]} fxe4 {[%emt 0:01:55]} 20. Bxe4 {[%emt 0:02:23] [#] Threatens to win with Nd4.} Qh5 {[%emt 0:05:16]} 21. Nd4 {[%emt 0:12:25]} Bh3 {[%emt 0:01:02]} 22. Bg2 {[%emt 0:00:15][%cal Od4c6] aiming for Nxc6!} Bxg2 {[%emt 0:14:11]} (22... Nd5 $11) 23. Qxg2 $16 {[%emt 0:00:27] And now Ne6 would win.} Nd5 {[%emt 0:00:54]} (23... Bd6 $14) 24. g4 {[%emt 0:02:17]} ({White should play} 24. Ne6 $16) 24... Qg6 {[%emt 0:06:06]} (24... Qf7 $11) 25. Ne6 $1 $14 {[%emt 0:04:41] Hoping for f5.} Bb6+ {[%emt 0:00:16]} 26. Kh1 {[%emt 0:00:11] Black must now prevent f5.} Ne3 {[%emt 0:03:02] [#]} 27. Rxe3 {[%emt 0:00:11]} ({Much weaker is} 27. Nxf8 Rxf8 28. Rxe3 Bxe3 $11) 27... Bxe3 {[%emt 0:00:12]} 28. f5 $36 {[%emt 0:00:30][%mdl 2048] White fights for an advantage.} Qf7 {[%emt 0:01:10]} 29. Re1 {[%emt 0:03:36]} Bb6 {[%emt 0:02:11]} 30. Bxg7 {[%emt 0:01:24]} Rfe8 {[%emt 0:00:08]} 31. Ba1 {[%emt 0:00:18] White is much more active.} (31. Bc3 $16 {Qd2 is the strong threat.} Qd7 32. Qf3) 31... Re7 $2 {[%emt 0:00:47][%mdl 8192]} (31... Qd7 $11) 32. Qb2 {[%emt 0:00:37] Weighted Error Value: White=0.21 (precise) /Black=0.21 (precise)} 1-0

[Event "34th GER-ch Seniors-50 2022"]
[Site "Magdeburg"]
[Date "2022.08.16"]
[Round "5.8"]
[White "Juegel, Marcel"]
[Black "Kopischke, Maik"]
[Result "1-0"]
[ECO "D00"]
[WhiteElo "2126"]
[BlackElo "1838"]
[Annotator "TA"]
[PlyCount "43"]
[EventDate "2022.08.12"]
[EventType "swiss"]
[EventCountry "GER"]
[SourceTitle "playchess.com"]
[Source "ChessBase"]
[SourceQuality "1"]
[TimeControl "40/5400+30:1800+30"]

{[%evp 11,43,0,21,0,35,21,30,9,18,-24,-16,-22,31,-52,0,-8,0,-62,-77,-85,0,0,0,-75,109,-124,-1,-121,-14,0,377,381,1903,1789]} 1. d4 {[%emt 0:00:04]} Nf6 {[%emt 0:00:36]} 2. Nc3 {[%emt 0:00:10]} d5 {[%emt 0:01:06]} 3. Bf4 {[%emt 0:00:10]} c6 {[%emt 0:00:21]} 4. e3 {[%emt 0:00:17]} g6 {[%emt 0:01:06]} 5. Be2 {[%emt 0:00:33]} Bg7 {[%emt 0:00:17]} 6. Nf3 {[%emt 0:00:23]} Nbd7 {[%emt 0:01:19]} 7. Qd2 {[%emt 0:05:21] [#] D00: 1 d4 d5: Unusual lines.} Qb6 $146 {[%emt 0:05:52]} ({Predecessor:} 7... Nh5 8. Bg5 h6 9. Bh4 g5 10. Bg3 Nxg3 11. hxg3 e5 12. dxe5 Nxe5 13. O-O-O Bf5 14. Nxe5 Bxe5 {0-1 (60) Linares Napoles,O (2255)-Padmini,R (2370) Chess.com INT 2021}) 8. O-O-O {[%emt 0:08:40]} Nh5 {[%emt 0:07:12]} 9. Rhe1 {[%emt 0:07:21] White has an edge.} O-O {[%emt 0:01:24]} 10. g4 {[%emt 0:04:09]} Nxf4 {[%emt 0:00:28]} 11. exf4 {[%emt 0:00:08]} e6 {[%emt 0:07:59]} (11... Qc7 $11) 12. Qe3 {[%emt 0:07:25]} (12. h4 $14) 12... c5 {[%emt 0:04:49]} 13. h4 {[%emt 0:04:54]} cxd4 {[%emt 0:02:42]} 14. Rxd4 {[%emt 0:03:16]} ({White should play} 14. Nxd4 $11 Nb8 15. Nb3) 14... Bxd4 $15 {[%emt 0:01:27]} 15. Nxd4 {[%emt 0:04:07] [#]} Nc5 {[%emt 0:04:09]} (15... Nb8 $1 $17 16. f5 Nc6) 16. h5 $11 {[%emt 0:00:51][%cal Of4f5]} Bd7 {[%emt 0:04:20]} 17. Rh1 {[%emt 0:01:18]} (17. f5 $11 {keeps the balance.}) 17... Ne4 $2 {[%emt 0:02:36]} (17... Qd6 $17) 18. Nd1 $2 {[%emt 0:10:08]} (18. hxg6 $16 {and life is bright.} Nxc3 19. gxh7+ Kh8 20. bxc3) 18... Kg7 {[%emt 0:09:39]} (18... g5 $17 {And now ...gxf4 would win.} 19. fxg5 Rac8) 19. Rh3 {[%emt 0:00:30]} (19. Bd3 $1 $11) 19... Rac8 {[%emt 0:00:30]} ({Better is} 19... g5 $17 {Hoping for ...gxf4.} 20. fxg5 e5 21. Nf5+ Bxf5 22. gxf5 Qxe3+ 23. Nxe3 Nxg5) 20. f3 $1 {[%emt 0:00:30]} Nf6 {[%emt 0:00:30][%mdl 8192] [#]} (20... Nc5 $11) 21. Qe5 $1 $18 {[%emt 0:00:30] Threatens to win with h6+. Really sharp!} Qc7 $2 {[%emt 0:00:30]} (21... Kg8) 22. h6+ {[%emt 0:00:30][%mdl 64] Deflection.  Weighted Error Value: White=0.61/Black=0.98} 1-0

[Event "34th GER-ch Seniors-50 2022"]
[Site "Magdeburg"]
[Date "2022.08.17"]
[Round "6.1"]
[White "Zude, Arno"]
[Black "Koscielski, Janusz"]
[Result "1-0"]
[ECO "B19"]
[WhiteElo "2371"]
[BlackElo "2255"]
[Annotator "TA"]
[PlyCount "117"]
[EventDate "2022.08.12"]
[EventType "swiss"]
[EventCountry "GER"]
[SourceTitle "playchess.com"]
[Source "ChessBase"]
[SourceQuality "1"]
[TimeControl "40/5400+30:1800+30"]

{[%evp 24,117,6,0,0,-2,-16,-44,0,0,0,0,0,0,6,10,39,39,57,50,40,46,46,41,54,58,70,53,55,29,44,39,37,26,60,28,33,31,51,35,72,81,80,86,81,87,144,144,370,372,377,364,269,55,56,56,581,579,312,667,667,629,1810,1847,1709,1338,1103,592,491,69,1138,1129,12835,3828,12834,12833,12831,10758,2242,1993,12840,12840,12840,12841,12841,12842,12842,12843,12842,12843,12843,12843,12845,12844,12844,12843]} 1. e4 {[%emt 0:00:03]} c6 {[%emt 0:00:06]} 2. d4 {[%emt 0:00:17]} d5 {[%emt 0:00:06]} 3. Nd2 {[%emt 0:00:09]} dxe4 {[%emt 0:00:15]} 4. Nxe4 {[%emt 0:00:07]} Bf5 {[%emt 0:00:25]} 5. Ng3 {[%emt 0:00:11]} Bg6 {[%emt 0:00:15]} 6. h4 {[%emt 0:00:09]} h6 {[%emt 0:00:08]} 7. Nf3 {[%emt 0:00:11]} Nd7 {[%emt 0:00:20]} 8. h5 {[%emt 0:00:13]} Bh7 {[%emt 0:00:09]} 9. Bd3 {[%emt 0:00:08]} Bxd3 {[%emt 0:00:08]} 10. Qxd3 {[%emt 0:00:05]} e6 {[%emt 0:00:35]} 11. Bd2 {[%emt 0:00:13]} Ngf6 {[%emt 0:00:38]} 12. O-O-O {[%emt 0:00:14]} Be7 {[%emt 0:00:16]} 13. Kb1 {[%emt 0:01:23]} Qb6 {[%emt 0:01:13] B19: Classical Caro-Kann: 4...Bf5 main line.} 14. c4 {[%emt 0:08:07]} O-O {[%emt 0:01:21]} 15. Ne4 {[%emt 0:05:03]} Nxe4 {[%emt 0:06:57] Black is slightly better.} (15... c5 $5 {[%cal Rc5d4]}) 16. Qxe4 {[%emt 0:00:02]} Nf6 {[%emt 0:00:10]} 17. Qe2 {[%emt 0:01:13][%cal Og2g4]} c5 $1 {[%emt 0:00:54]} 18. Bc3 {[%emt 0:17:49][%cal Og2g4]} cxd4 {[%emt 0:09:07]} 19. Bxd4 {[%emt 0:01:24]} Qc6 {[%emt 0:00:27]} 20. Ne5 {[%emt 0:08:19]} Qe4+ {[%emt 0:03:21]} 21. Qxe4 {[%emt 0:01:01]} Nxe4 {[%emt 0:00:06] [#]} 22. Rhe1 $146 {[%emt 0:00:28]} ({Predecessor:} 22. g4 Rfd8 23. f3 Bc5 24. Bxc5 Nxc5 25. b4 Na4 26. Kc2 Nb6 27. Kb3 Kf8 28. a4 {½-½ (64) Abrahamyan,T (2377)-Free,G (2015) Burlingame 2019}) 22... Nf6 {[%emt 0:02:29]} 23. g4 {[%emt 0:04:56]} Rfd8 {[%emt 0:02:10]} 24. f3 {[%emt 0:02:53]} Kf8 {[%emt 0:20:36]} 25. Rd3 {[%emt 0:08:36] White is more active.} Ke8 {[%emt 0:06:24]} 26. Red1 {[%emt 0:01:14]} a6 {[%emt 0:13:50]} 27. b3 {[%emt 0:02:09]} Rac8 {[%emt 0:05:35]} 28. Kb2 {[%emt 0:01:43]} Bf8 {[%emt 0:03:34]} 29. Bc3 {[%emt 0:16:54] Rxd8+ is the strong threat.} Rxd3 {[%emt 0:02:45]} 30. Rxd3 {[%emt 0:00:03]} Be7 {[%emt 0:01:28]} 31. Rd2 {[%emt 0:04:45]} Rd8 {[%emt 0:02:08]} 32. Rxd8+ {[%emt 0:02:03]} Bxd8 $16 {[%emt 0:00:08][%mdl 4096] Endgame KBN-KBN} 33. a4 {[%emt 0:01:49]} Be7 {[%emt 0:02:09]} 34. b4 {[%emt 0:01:00]} Bf8 {[%emt 0:07:05] [#]} (34... Nh7 $142) 35. Kb3 $1 {[%emt 0:00:15]} Nd7 $2 {[%emt 0:00:31]} (35... Be7 $16 {is a better defense.}) 36. Nxd7 $18 {[%emt 0:01:13]} Kxd7 {[%emt 0:00:03] KB-KB} 37. c5 {[%emt 0:00:55]} g6 {[%emt 0:08:13]} 38. f4 $2 {[%emt 0:05:09]} (38. Kc4 $18) 38... gxh5 {[%emt 0:00:36]} 39. gxh5 {[%emt 0:00:02]} Kc6 $2 {[%emt 0:02:42][%mdl 8192] [#] White stays focused until the end.} ({Black should play} 39... a5 $1 $14) 40. Kc4 {[%emt 0:00:20]} Kd7 {[%emt 0:00:27]} 41. Bf6 $2 {[%emt 0:19:23]} (41. b5) 41... Kc6 {[%emt 0:01:12]} 42. b5+ {[%emt 0:02:44]} axb5+ {[%emt 0:00:30]} 43. axb5+ {[%emt 0:00:07]} Kc7 {[%emt 0:01:08]} 44. Kd4 {[%emt 0:06:19]} Kc8 {[%emt 0:03:23]} 45. Be5 {[%emt 0:00:56]} Kd7 {[%emt 0:00:35]} 46. f5 $2 {[%emt 0:05:34]} ({White should try} 46. Kc4 $18 Kd8 47. Bd4) 46... Be7 $2 {[%emt 0:18:43][%mdl 8192]} (46... exf5 $14 47. Bf4 Bg7+ 48. Be5 Bf8) 47. f6 {[%emt 0:01:12] White is clearly winning.} Bf8 {[%emt 0:00:06]} 48. Bg3 {[%emt 0:01:18]} (48. Bf4 $142 Kc8 49. c6) 48... Kc8 {[%emt 0:00:27]} 49. Bf4 {[%emt 0:00:17]} Kd7 {[%emt 0:00:09]} 50. Kc4 {[%emt 0:00:10]} Kc8 {[%emt 0:02:26]} 51. c6 {[%emt 0:00:21]} bxc6 {[%emt 0:03:01]} 52. bxc6 {[%emt 0:00:02]} Kd8 {[%emt 0:00:36]} 53. Kb5 {[%emt 0:01:22]} Kc8 {[%emt 0:00:16]} 54. Kb6 {[%emt 0:00:08]} e5 {[%emt 0:03:10]} 55. Bxe5 {[%emt 0:00:10]} Ba3 {[%emt 0:00:10]} 56. Bf4 {[%emt 0:00:30]} Bb2 {[%emt 0:00:50]} 57. Bxh6 {[%emt 0:00:09]} Bxf6 {[%emt 0:00:06]} 58. Bf4 {[%emt 0:02:01]} Bd4+ {[%emt 0:01:13]} 59. Kb5 {[%emt 0:00:08] Weighted Error Value: White=0.40/Black=0.41} 1-0

[Event "34th GER-ch Seniors-50 2022"]
[Site "Magdeburg"]
[Date "2022.08.17"]
[Round "6.2"]
[White "Krause, Ullrich"]
[Black "Pirrot, Dieter"]
[Result "0-1"]
[ECO "A96"]
[WhiteElo "2190"]
[BlackElo "2328"]
[Annotator "TA"]
[PlyCount "64"]
[EventDate "2022.08.12"]
[EventType "swiss"]
[EventCountry "GER"]
[SourceTitle "playchess.com"]
[Source "ChessBase"]
[SourceQuality "1"]
[TimeControl "40/5400+30:1800+30"]

{[%evp 12,64,46,38,61,21,33,25,36,23,31,-23,-29,-72,-79,-81,-81,-82,-74,-89,-83,-159,-165,-177,-175,-172,-165,-196,-191,-201,-196,-305,-239,-239,-239,-235,-244,-350,-290,-285,-294,-292,-276,-295,-295,-416,-307,-307,-298,-431,-431,-415,-415,-29973,-29970]} 1. Nf3 {[%emt 0:00:03]} e6 {[%emt 0:00:24]} 2. c4 {[%emt 0:00:22]} f5 {[%emt 0:00:20]} 3. g3 {[%emt 0:00:06]} Nf6 {[%emt 0:00:28]} 4. Bg2 {[%emt 0:00:07]} Be7 {[%emt 0:00:39]} 5. O-O {[%emt 0:00:12]} O-O {[%emt 0:00:10]} 6. d4 {[%emt 0:00:12]} d6 {[%emt 0:00:13]} 7. b3 {[%emt 0:00:15]} Nc6 {[%emt 0:01:04][%cal Bb8c6,Bc6b4,Bb4d5,Bd5c3][%mdl 32] A96: Classical Dutch: Fluid Systems: Early deviations.} 8. d5 {[%emt 0:04:37]} exd5 {[%emt 0:00:16]} 9. cxd5 {[%emt 0:00:08] [#]} Nb4 $146 {[%emt 0:00:28] White has an edge.} ({Predecessor:} 9... Ne5 10. Nc3 Bd7 11. Bb2 Qe8 12. a4 Qh5 13. Nb5 f4 14. Nxc7 Bh3 15. Ne6 Nfg4 16. Bxe5 dxe5 17. Nxf8 {0-1 (24) Grandelius,N (2662)-Espinosa Veloz,E (2485) Chess.com INT 2020}) 10. Nc3 {[%emt 0:02:10]} Ne4 {[%emt 0:00:28]} 11. Nxe4 {[%emt 0:07:20]} (11. Bb2 $1 $14) 11... fxe4 $11 {[%emt 0:00:12]} 12. Nd4 {[%emt 0:00:26]} Nxd5 {[%emt 0:07:53]} 13. Bxe4 {[%emt 0:09:19]} Nc3 {[%emt 0:02:52][%csl LRd1,LRe4]} 14. Qd3 {[%emt 0:06:23]} Nxe4 {[%emt 0:00:29]} 15. Qxe4 {[%emt 0:00:07]} d5 {[%emt 0:07:56][%cal Bd6d5,Bd5d4][%mdl 32]} 16. Qc2 {[%emt 0:13:27] [#]} ({White should try} 16. Qe3) 16... c5 $1 $36 {[%emt 0:01:15][%mdl 2048] White is under strong pressure.} 17. Nf3 {[%emt 0:00:31]} Bf5 {[%emt 0:01:50][%cal Bc8f5,Bf5e4,Be4g6][%mdl 32]} 18. Qd2 {[%emt 0:00:29]} d4 {[%emt 0:01:52]} 19. Bb2 {[%emt 0:04:32]} Qd5 {[%emt 0:02:17]} 20. Rfd1 {[%emt 0:05:24]} Be4 {[%emt 0:04:39] Strongly threatening ...Qh5.} 21. b4 {[%emt 0:16:52]} (21. Rf1 {might work better.}) 21... b6 {[%emt 0:00:58] Hoping for ...Qh5.} ({Not} 21... cxb4 22. Qxd4 Qxd4 23. Rxd4 $15) 22. bxc5 {[%emt 0:00:55]} bxc5 {[%emt 0:00:10] White must now prevent ...Qh5.} 23. Nxd4 {[%emt 0:04:42]} cxd4 {[%emt 0:04:27]} 24. f3 {[%emt 0:03:02]} (24. Qxd4 $142 Qxd4 25. Rxd4) 24... Bg6 {[%emt 0:07:30]} 25. Bxd4 {[%emt 0:01:32]} Rfd8 {[%emt 0:00:39]} 26. Qe3 {[%emt 0:05:16]} Qf7 {[%emt 0:07:02]} 27. Bxa7 {[%emt 0:02:51]} Bf6 {[%emt 0:04:22][%csl LRa1,LRa7] This bishop pair is nice.} 28. Bd4 {[%emt 0:00:17]} (28. Rxd8+ $142 Rxd8 29. Re1) 28... Rxd4 {[%emt 0:10:27]} 29. Rxd4 {[%emt 0:00:43]} Re8 {[%emt 0:00:25][%mdl 64] [#] Skewer} 30. Qf4 {[%emt 0:05:15]} (30. Qc3 {is a better defense.}) 30... Rxe2 $19 {[%emt 0:09:05]} 31. Rad1 {[%emt 0:05:50]} Bxd4+ {[%emt 0:00:23]} 32. Rxd4 {[%emt 0:00:18]} (32. Qxd4 $19 Qxf3 33. Qd8+ Be8 34. Qd5+ Qxd5 35. Rxd5) 32... Qxa2 {[%emt 0:00:57] Black took control after the opening.  Weighted Error Value: White=0.59/Black=0.12 (very precise)} 0-1